bitfinex/quotes_BTCUSD_20250822
["timestamp","ask_amount","ask_price","bid_price","bid_amount"]
[1755887076626,1.19132951,117080.0,117070.0,0.20868796]
[1755887077025,1.19648951,117080.0,117070.0,0.20549796]
[1755887077266,0.75807591,117080.0,117070.0,0.20868796]
[1755887077472,1.19432951,117080.0,117070.0,0.20868796]
[1755887077891,1.16872132,117080.0,117070.0,0.20868796]
[1755887078120,0.70340151,117080.0,117070.0,0.20868796]
[1755887078390,1.13965511,117080.0,117070.0,0.20868796]
[1755887079014,1.14781636,117080.0,117070.0,0.20549796]
[1755887080237,1.14781636,117080.0,117070.0,0.20339796]
[1755887080439,1.14781636,117080.0,117070.0,0.20549796]
[1755887080806,1.14181511,117080.0,117070.0,0.20549796]
[1755887081039,1.13965511,117080.0,117070.0,0.20868796]
[1755887081232,1.13679619,117080.0,117060.0,0.20339796]
[1755887081432,0.9414536,117070.0,117060.0,0.20339796]
[1755887081631,1.06485753,117070.0,117060.0,0.20549796]
[1755887082409,1.03924934,117070.0,117060.0,0.20549796]
[1755887082823,1.05669836,117070.0,117060.0,0.20339796]
[1755887083229,1.05669836,117070.0,117050.0,0.06359]
[1755887083379,1.02805835,117060.0,117050.0,0.26698796]
[1755887083581,1.03021835,117060.0,117050.0,0.26589796]
[1755887083959,1.05589735,117060.0,117050.0,0.26219796]
[1755887084167,1.06899647,117060.0,117050.0,0.0588]
[1755887084581,1.07198647,117060.0,117050.0,0.0567]
[1755887084812,1.1088614,117060.0,117050.0,0.26009796]
[1755887084988,1.12685617,117060.0,117050.0,0.26009796]
[1755887085217,1.12685617,117060.0,117050.0,0.0567]
[1755887085391,1.12685617,117060.0,117050.0,0.26009796]
[1755887085717,1.1078714,117060.0,117050.0,0.26009796]
[1755887085957,1.12286226,117060.0,117050.0,0.0567]
[1755887086363,1.12486226,117060.0,117050.0,0.26009796]
[1755887086570,1.12286226,117060.0,117050.0,0.26009796]
[1755887086770,1.34625226,117060.0,117050.0,0.26009796]
[1755887086972,1.35225226,117060.0,117050.0,0.26009796]
[1755887087380,1.3522482,117060.0,117050.0,0.26009796]
[1755887087589,1.3522482,117060.0,117050.0,0.0567]
[1755887087795,1.3522482,117060.0,117050.0,0.26009796]
[1755887087997,1.3522482,117060.0,117050.0,0.0567]
[1755887088203,1.3522482,117060.0,117050.0,0.056]
[1755887088416,1.33263238,117060.0,117050.0,0.056]
[1755887088649,1.3537075,117060.0,117050.0,0.056]
[1755887089266,1.34771513,117060.0,117050.0,0.056]
[1755887089449,1.3537058,117060.0,117050.0,0.056]
[1755887089881,1.32664001,117060.0,117050.0,0.056]
[1755887090293,1.30101913,117060.0,117050.0,0.056]
[1755887090535,2.04515996,117060.0,117050.0,0.01748509]
[1755887090719,2.05285788,117060.0,117050.0,0.01748509]
[1755887090984,2.06623327,117060.0,117050.0,0.00892622]
[1755887091176,0.18831647,117050.0,117020.0,0.20339796]
[1755887091453,0.54058737,117030.0,117020.0,0.20658796]
[1755887091663,0.54058737,117030.0,117020.0,0.20868796]
[1755887091891,0.70442737,117030.0,117020.0,0.20868796]
[1755887092416,0.63386077,117030.0,117020.0,0.20868796]
[1755887092666,0.65806461,117030.0,117020.0,0.20868796]
[1755887092922,0.63640115,117030.0,117020.0,0.20868796]
[1755887093222,0.47456115,117030.0,117020.0,0.20868796]
[1755887093418,0.63820115,117030.0,117020.0,0.20868796]
[1755887093905,0.44887415,117030.0,117020.0,0.20868796]
[1755887094134,0.61451415,117030.0,117020.0,0.20868796]
[1755887094588,0.58890596,117030.0,117020.0,0.20868796]
[1755887095683,0.62746536,117030.0,117020.0,0.20868796]
[1755887096325,0.60185717,117030.0,117020.0,0.29555761]
[1755887096934,0.43821717,117030.0,117020.0,0.29555761]
[1755887097159,0.60145717,117030.0,117020.0,0.29555761]
[1755887097534,0.43821717,117030.0,117020.0,0.20868796]
[1755887097742,0.60137717,117030.0,117020.0,0.20868796]
[1755887100402,0.60328717,117030.0,117020.0,0.20868796]
[1755887100601,1.02457893,117030.0,117020.0,0.20868796]
[1755887100808,1.02457893,117030.0,117020.0,0.20549796]
[1755887101214,1.02758893,117030.0,117020.0,0.20339796]
[1755887101422,0.34,117020.0,117010.0,1.00004]
[1755887101622,1.0386547,117020.0,117010.0,1.00218]
[1755887101828,0.59175475,117020.0,117010.0,1.20557796]
[1755887102043,1.0386547,117020.0,117010.0,1.20557796]
[1755887102445,1.01304651,117020.0,117010.0,1.20557796]
[1755887102649,1.01404651,117020.0,117010.0,1.20882796]
[1755887102844,0.56503656,117020.0,117010.0,1.25506961]
[1755887103214,0.56499656,117020.0,117010.0,1.25506961]
[1755887103495,0.47811181,117020.0,117010.0,1.25506961]
[1755887103950,0.16356,117020.0,117010.0,1.70196956]
[1755887104087,0.16456,117020.0,117010.0,1.25506961]
[1755887104490,0.002,117020.0,117010.0,1.70196956]
[1755887104698,0.16456,117020.0,117010.0,1.70196956]
[1755887104900,0.16356,117020.0,117010.0,1.70196956]
[1755887105116,0.16356,117020.0,117010.0,1.25506961]
[1755887105117,0.002,117020.0,117010.0,1.25506961]
[1755887105324,0.16456,117020.0,117010.0,1.70196956]
[1755887105520,0.001,117020.0,117010.0,1.70196956]
[1755887105723,0.00047972,117030.0,117020.0,0.20339796]
[1755887105947,0.16311972,117030.0,117020.0,0.29240761]
[1755887106118,0.16311972,117030.0,117020.0,0.74255756]
[1755887106783,0.13748965,117030.0,117020.0,0.74255756]
[1755887107036,0.13748965,117030.0,117020.0,0.29565761]
[1755887107641,0.13948965,117030.0,117020.0,0.29665761]
[1755887107933,0.13948965,117030.0,117020.0,0.09325965]
[1755887107934,0.5863896,117030.0,117020.0,0.09325965]
[1755887108143,0.65703913,117030.0,117020.0,0.29665761]
[1755887108369,0.21013918,117030.0,117020.0,0.00639]
[1755887108574,0.21013918,117030.0,117020.0,0.20653796]
[1755887108575,0.18645911,117030.0,117020.0,0.20653796]
[1755887108775,0.52645911,117030.0,117020.0,0.20853796]
[1755887108994,0.52550911,117030.0,117020.0,0.21178796]
[1755887109198,0.52550911,117030.0,117020.0,0.29865761]
[1755887109405,0.52450911,117030.0,117020.0,0.29665761]
[1755887109579,0.52450911,117030.0,117020.0,0.20439796]
[1755887109580,0.52646911,117030.0,117020.0,0.20439796]
[1755887109787,0.52646911,117030.0,117020.0,0.20339796]
[1755887109788,0.52446911,117030.0,117020.0,0.20339796]
[1755887109932,0.52250911,117030.0,117020.0,0.20878796]
[1755887110137,0.45385958,117030.0,117020.0,0.29665761]
[1755887110340,0.45385958,117030.0,117020.0,0.29565761]
[1755887110579,0.45485958,117030.0,117020.0,0.29665761]
[1755887111144,0.45696958,117030.0,117020.0,0.29340761]
[1755887111338,0.45796958,117030.0,117020.0,0.29440761]
[1755887111528,0.45585958,117030.0,117020.0,0.29440761]
[1755887111728,0.54485433,117030.0,117020.0,0.29440761]
[1755887112185,0.54485433,117030.0,117020.0,0.20539796]
[1755887112404,0.58389106,117030.0,117020.0,0.20539796]
[1755887113233,0.55826099,117030.0,117020.0,0.20539796]
[1755887114089,0.55826099,117030.0,117020.0,0.20753796]
[1755887114313,0.55615099,117030.0,117020.0,0.21078796]
[1755887114521,0.55615099,117030.0,117020.0,0.29765761]
[1755887114733,0.63232148,117030.0,117020.0,0.29765761]
[1755887114947,0.44429141,117030.0,117020.0,0.29765761]
[1755887115437,0.16644,117030.0,117020.0,0.29765761]
[1755887116936,0.004,117030.0,117020.0,0.29765761]
[1755887117142,0.16688,117030.0,117020.0,0.29765761]
[1755887117350,0.16688,117030.0,117020.0,0.89687664]
[1755887117351,0.004,117030.0,117020.0,0.89687664]
[1755887117573,0.004,117030.0,117020.0,0.66630328]
[1755887117783,0.004,117030.0,117020.0,1.54272231]
[1755887117997,0.07116,117060.0,117050.0,0.20339796]
[1755887118204,0.00017245,117070.0,117060.0,0.20339796]
[1755887118453,0.00017245,117070.0,117060.0,0.20553796]
[1755887118687,0.16293245,117070.0,117060.0,0.81605699]
[1755887118902,0.16289245,117070.0,117060.0,0.81605699]
[1755887119114,0.16289245,117070.0,117060.0,0.37963796]
[1755887119331,0.13726238,117070.0,117060.0,0.46327764]
[1755887119539,0.13726238,117070.0,117060.0,0.37968608]
[1755887119989,0.12938304,117080.0,117060.0,0.37968608]
[1755887120191,0.12938304,117080.0,117070.0,0.20878343]
[1755887120415,0.29214304,117080.0,117070.0,0.37962796]
[1755887121065,0.28651399,117080.0,117070.0,0.37962796]
[1755887121280,0.28651399,117080.0,117070.0,0.41789557]
[1755887121698,0.28751399,117080.0,117070.0,0.41889557]
[1755887122730,0.24883253,117080.0,117070.0,0.41889557]
[1755887123162,0.08607253,117080.0,117070.0,0.41889557]
[1755887123371,0.24863253,117080.0,117070.0,0.41889557]
[1755887124233,0.16356,117080.0,117070.0,0.41889557]
[1755887124654,0.001,117080.0,117070.0,0.94219935]
[1755887124882,0.001,117080.0,117070.0,1.04219935]
[1755887125505,0.13764993,117100.0,117090.0,0.20339796]
[1755887125705,0.13764993,117100.0,117090.0,0.44032966]
[1755887125910,0.13764993,117100.0,117090.0,0.44357966]
[1755887126945,0.18153204,117110.0,117090.0,0.44357966]
[1755887127127,0.18153204,117110.0,117100.0,0.2076678]
[1755887127325,0.18364204,117110.0,117100.0,0.37632796]
[1755887127544,0.18364204,117110.0,117100.0,0.42068393]
[1755887128352,0.18364204,117110.0,117100.0,0.42073205]
[1755887128573,0.18364204,117110.0,117100.0,0.37723608]
[1755887128574,0.18765204,117110.0,117100.0,0.37723608]
[1755887128954,0.27553679,117110.0,117100.0,0.37723608]
[1755887129153,0.71195582,117110.0,117100.0,0.17383812]
[1755887129428,1.12260535,117110.0,117100.0,0.17383812]
[1755887129633,1.12260535,117110.0,117100.0,0.37723608]
[1755887130253,0.68518632,117110.0,117100.0,0.37723608]
[1755887130448,1.12160535,117110.0,117100.0,0.37723608]
[1755887130724,1.14827235,117110.0,117100.0,0.37823608]
[1755887130932,1.14827235,117110.0,117100.0,0.17483812]
[1755887131133,1.14827235,117110.0,117100.0,0.37823608]
[1755887131539,1.12264228,117110.0,117100.0,0.37823608]
[1755887131738,0.68622325,117110.0,117100.0,0.37823608]
[1755887131948,1.12164228,117110.0,117100.0,0.37723608]
[1755887132122,1.12264228,117110.0,117100.0,0.37523608]
[1755887132536,1.05399275,117110.0,117100.0,0.37623608]
[1755887133319,1.07284154,117110.0,117100.0,0.37623608]
[1755887133581,0.63642251,117110.0,117100.0,0.37623608]
[1755887133914,1.07284154,117110.0,117100.0,0.37623608]
[1755887134596,0.63642251,117110.0,117100.0,0.37623608]
[1755887134802,1.07284154,117110.0,117100.0,0.37623608]
[1755887137054,0.63642251,117110.0,117100.0,0.37623608]
[1755887137280,1.07284154,117110.0,117100.0,0.37623608]
[1755887137764,1.04722242,117110.0,117100.0,0.37623608]
[1755887138057,1.04722242,117110.0,117100.0,0.17283812]
[1755887138058,1.06467144,117110.0,117100.0,0.17283812]
[1755887139711,1.519428,117110.0,117100.0,0.17283812]
[1755887139912,1.09096847,117110.0,117100.0,0.17283812]
[1755887140330,1.09541853,117110.0,117100.0,0.17283812]
[1755887141853,0.6589995,117110.0,117100.0,0.17283812]
[1755887142277,1.09541853,117110.0,117100.0,0.17283812]
[1755887143339,1.11830071,117110.0,117100.0,0.17283812]
[1755887143544,1.34066071,117110.0,117100.0,0.17283812]
[1755887143767,1.29215941,117110.0,117100.0,0.17283812]
[1755887143976,1.31504159,117110.0,117100.0,0.17283812]
[1755887144187,1.31505657,117110.0,117100.0,0.17283812]
[1755887144400,1.32104137,117110.0,117100.0,0.17283812]
[1755887145464,0.88462234,117110.0,117100.0,0.17283812]
[1755887145764,1.32104137,117110.0,117100.0,0.17283812]
[1755887146182,1.35179882,117110.0,117100.0,0.17283812]
[1755887147231,1.31495736,117110.0,117100.0,0.17283812]
[1755887147441,1.32894248,117110.0,117100.0,0.17283812]
[1755887148084,1.32894208,117110.0,117100.0,0.17283812]
[1755887148291,1.32694208,117110.0,117100.0,0.17183812]
[1755887148494,1.32694208,117110.0,117100.0,0.17083812]
[1755887148495,1.32494208,117110.0,117100.0,0.17083812]
[1755887148713,1.32894208,117110.0,117100.0,0.17183812]
[1755887149347,1.35195241,117110.0,117100.0,0.17183812]
[1755887149576,1.32119496,117110.0,117100.0,0.17183812]
[1755887149999,1.29857584,117110.0,117100.0,0.17183812]
[1755887151308,0.86215681,117110.0,117100.0,0.17183812]
[1755887151510,1.29857584,117110.0,117100.0,0.17183812]
[1755887152847,0.86215681,117110.0,117100.0,0.17183812]
[1755887153059,1.29857584,117110.0,117100.0,0.17183812]
[1755887154708,1.31194502,117110.0,117100.0,0.17183812]
[1755887155764,1.29857584,117110.0,117100.0,0.17183812]
[1755887155950,1.27295672,117110.0,117100.0,0.17183812]
[1755887156352,1.29772226,117110.0,117100.0,0.17183812]
[1755887156511,1.30371686,117110.0,117100.0,0.17183812]
[1755887158174,1.74013589,117110.0,117100.0,0.17183812]
[1755887158390,1.71712556,117110.0,117100.0,0.00104812]
[1755887158604,1.92092472,117110.0,117100.0,0.00104812]
[1755887158818,1.97478854,117110.0,117100.0,0.00104812]
[1755887159030,2.03615263,117110.0,117100.0,0.00104812]
[1755887159235,0.179338,117100.0,117060.0,0.20339796]
[1755887159442,0.52525378,117070.0,117060.0,0.20560608]
[1755887159662,0.71251195,117070.0,117060.0,0.20560608]
[1755887159886,0.27609292,117070.0,117060.0,0.20344608]
[1755887160104,0.73819295,117070.0,117060.0,0.20309608]
[1755887160327,1.07819295,117070.0,117060.0,4.812e-05]
[1755887160552,1.11045683,117070.0,117060.0,4.812e-05]
[1755887160771,1.1355866,117070.0,117060.0,4.812e-05]
[1755887160955,1.16795511,117070.0,117060.0,0.00104812]
[1755887161495,1.16895701,117070.0,117060.0,0.00104812]
[1755887161706,1.1823313,117070.0,117060.0,0.00104812]
[1755887161930,1.16695381,117070.0,117060.0,0.00104812]
[1755887162150,1.14133469,117070.0,117060.0,0.00104812]
[1755887162361,1.13711469,117070.0,117060.0,0.00203812]
[1755887162611,1.12751434,117070.0,117060.0,0.00499812]
[1755887162845,1.12651434,117070.0,117060.0,0.00499812]
[1755887163089,0.69209531,117070.0,117060.0,0.00499812]
[1755887163320,1.12839434,117070.0,117060.0,0.00499812]
[1755887163542,1.12831434,117070.0,117060.0,0.00499812]
[1755887163771,1.12931434,117070.0,117060.0,0.00499812]
[1755887164298,0.59953413,117070.0,117060.0,0.00499812]
[1755887164525,0.10828416,117070.0,117060.0,0.20804608]
[1755887164757,0.26660336,117070.0,117060.0,0.20804608]
[1755887165236,0.25062663,117070.0,117060.0,0.20804608]
[1755887165914,0.24862663,117070.0,117060.0,0.20804608]
[1755887166345,0.24962663,117070.0,117060.0,0.20804608]
[1755887166769,0.24862663,117070.0,117060.0,0.20804608]
[1755887167197,0.24962663,117070.0,117060.0,0.20904608]
[1755887168282,0.22400751,117070.0,117060.0,0.20904608]
[1755887170664,0.56400751,117070.0,117060.0,0.20904608]
[1755887172896,0.60199962,117070.0,117060.0,0.20904608]
[1755887173490,0.60175962,117070.0,117060.0,0.20904608]
[1755887174741,0.57613174,117070.0,117060.0,0.20904608]
[1755887175609,1.01255077,117070.0,117060.0,0.20904608]
[1755887177541,0.57613174,117070.0,117060.0,0.20904608]
[1755887177745,1.01255077,117070.0,117060.0,0.20904608]
[1755887177954,1.03517979,117070.0,117060.0,0.20409608]
[1755887178582,1.06958499,117070.0,117060.0,0.20409608]
[1755887179551,1.05359661,117070.0,117060.0,0.20409608]
[1755887179761,1.06636525,117070.0,117060.0,0.20409608]
[1755887179960,1.06636525,117070.0,117060.0,0.20608608]
[1755887179961,0.90592525,117070.0,117060.0,0.20608608]
[1755887180182,0.41569174,117070.0,117060.0,0.22965469]
[1755887180576,0.57565174,117070.0,117060.0,0.22965469]
[1755887180723,0.63690861,117070.0,117060.0,0.22965469]
[1755887181258,0.63690861,117070.0,117060.0,0.20904608]
[1755887181433,0.47694861,117070.0,117060.0,0.20904608]
[1755887181637,0.63670861,117070.0,117060.0,0.20904608]
[1755887182444,1.07508764,117070.0,117060.0,0.20608608]
[1755887182644,1.07508764,117070.0,117060.0,0.20409608]
[1755887182851,1.09253666,117070.0,117060.0,0.20409608]
[1755887183070,1.1117475,117070.0,117060.0,0.20409608]
[1755887183459,1.11174846,117070.0,117060.0,0.20409608]
[1755887184282,0.67532943,117070.0,117060.0,0.20409608]
[1755887184500,1.10852846,117070.0,117060.0,0.20409608]
[1755887184710,0.67532943,117070.0,117060.0,0.20409608]
[1755887184911,0.67210943,117070.0,117060.0,0.20409608]
[1755887185131,1.10852846,117070.0,117060.0,0.20409608]
[1755887185575,1.09253666,117070.0,117060.0,0.20409608]
[1755887185961,0.65611763,117070.0,117060.0,0.20608608]
[1755887186123,1.09253666,117070.0,117060.0,0.20608608]
[1755887186940,1.06690878,117070.0,117060.0,0.20608608]
[1755887187141,1.09062878,117070.0,117060.0,0.20904608]
[1755887188189,1.09258878,117070.0,117060.0,0.20608608]
[1755887189634,1.16374878,117070.0,117060.0,0.20608608]
[1755887190420,0.72732975,117070.0,117060.0,0.20914608]
[1755887190614,1.16374878,117070.0,117060.0,0.20914608]
[1755887190819,1.16374878,117070.0,117060.0,0.20608608]
[1755887191918,0.72742975,117070.0,117060.0,0.20914608]
[1755887192084,1.16384878,117070.0,117060.0,0.20914608]
[1755887192488,1.16384878,117070.0,117060.0,0.20409608]
[1755887192711,1.16384878,117070.0,117060.0,0.20611608]
[1755887192911,1.18229214,117070.0,117060.0,0.20611608]
[1755887193122,1.1382209,117070.0,117060.0,0.20917608]
[1755887193505,1.1361609,117070.0,117060.0,0.20917608]
[1755887193675,0.69974187,117070.0,117060.0,0.23009369]
[1755887193877,1.1361609,117070.0,117060.0,0.23009369]
[1755887194283,1.1382209,117070.0,117060.0,0.20917608]
[1755887195135,1.1361609,117070.0,117060.0,0.20917608]
[1755887195548,0.69974187,117070.0,117060.0,0.20917608]
[1755887195751,1.1361609,117070.0,117060.0,0.20917608]
[1755887196335,0.68229285,117070.0,117060.0,0.20917608]
[1755887196535,0.65661285,117070.0,117060.0,0.20917608]
[1755887196739,0.65661285,117070.0,117060.0,0.23009369]
[1755887197326,0.35579686,117070.0,117060.0,0.20917608]
[1755887197729,0.26891211,117070.0,117060.0,0.20917608]
[1755887198479,0.07116,117090.0,117080.0,0.20304796]
[1755887198687,0.31780475,117090.0,117080.0,0.20506796]
[1755887198914,0.23092,117090.0,117080.0,0.22863476]
[1755887199114,0.15976,117090.0,117080.0,0.22863476]
[1755887200372,0.16176,117090.0,117080.0,0.22963476]
[1755887200517,0.19866131,117090.0,117080.0,0.22863476]
[1755887201070,0.20066131,117090.0,117080.0,0.23063476]
[1755887201280,0.20166131,117090.0,117080.0,0.23163476]
[1755887201494,0.16276,117090.0,117080.0,0.23163476]
[1755887205310,0.13713212,117090.0,117080.0,0.23163476]
[1755887205695,0.17549864,117090.0,117080.0,0.23163476]
[1755887207857,0.003,117090.0,117080.0,0.66805379]
[1755887208444,0.003,117090.0,117080.0,0.82777379]
[1755887208794,0.002,117090.0,117080.0,0.91365854]
[1755887209042,0.002,117090.0,117080.0,0.91565854]
[1755887209245,0.003,117090.0,117080.0,0.91365854]
[1755887209417,0.001,117090.0,117080.0,0.91365854]
[1755887209758,0.002,117090.0,117080.0,0.58023951]
[1755887209930,0.002,117090.0,117080.0,1.04232154]
[1755887211072,0.002,117090.0,117080.0,0.64132194]
[1755887211276,0.002,117090.0,117080.0,1.07774097]
[1755887211475,0.14176953,117130.0,117120.0,0.20304796]
[1755887211718,0.64350953,117130.0,117120.0,0.22537276]
[1755887212137,0.025663,117140.0,117130.0,0.20304796]
[1755887212315,0.15968,117140.0,117130.0,0.20506796]
[1755887212557,0.19353124,117140.0,117130.0,0.23066524]
[1755887212772,0.19353124,117140.0,117130.0,0.23071336]
[1755887213456,0.19353124,117140.0,117130.0,0.22671336]
[1755887213890,0.19453124,117140.0,117130.0,0.39545336]
[1755887214116,0.19659124,117140.0,117130.0,0.39545336]
[1755887214345,0.19453124,117140.0,117130.0,0.39545336]
[1755887214585,0.19759124,117140.0,117130.0,0.39139336]
[1755887214803,0.19659124,117140.0,117130.0,0.38937336]
[1755887215011,0.19977124,117140.0,117130.0,0.36883608]
[1755887215494,0.19977124,117140.0,117130.0,0.36983608]
[1755887216799,0.19659124,117140.0,117130.0,0.37185608]
[1755887217643,0.17096336,117140.0,117130.0,0.36983608]
[1755887217848,0.17096336,117140.0,117130.0,0.40712569]
[1755887218065,0.17096336,117140.0,117130.0,0.40914569]
[1755887218688,0.17096336,117140.0,117130.0,0.40712569]
[1755887218913,0.17096336,117140.0,117130.0,0.40914569]
[1755887219352,0.17096336,117140.0,117130.0,0.40712569]
[1755887219778,0.61056239,117140.0,117130.0,0.36983608]
[1755887220425,1.03744714,117140.0,117130.0,0.36983608]
[1755887220637,1.03744714,117140.0,117130.0,0.17378812]
[1755887220638,1.06284497,117140.0,117130.0,0.17378812]
[1755887220848,1.06284497,117140.0,117130.0,0.36983608]
[1755887221070,1.06284497,117140.0,117130.0,0.17378812]
[1755887221288,1.06284497,117140.0,117130.0,0.36983608]
[1755887221516,1.08850997,117140.0,117130.0,0.36883608]
[1755887221951,1.08750997,117140.0,117130.0,0.36783608]
[1755887222391,1.07006095,117140.0,117130.0,0.36783608]
[1755887222809,0.63364192,117140.0,117130.0,0.36783608]
[1755887223032,0.4964098,117140.0,117130.0,0.37298608]
[1755887223247,0.6549898,117140.0,117130.0,0.37398608]
[1755887223467,0.6570198,117140.0,117130.0,0.36883608]
[1755887223684,1.07093095,117140.0,117130.0,0.36883608]
[1755887224744,0.63139192,117140.0,117130.0,0.37098608]
[1755887224947,0.63139192,117140.0,117130.0,0.40838469]
[1755887225157,1.04214595,117140.0,117130.0,0.37098608]
[1755887226412,1.04214595,117140.0,117130.0,0.36883608]
[1755887227028,1.04526595,117140.0,117130.0,0.36883608]
[1755887227645,1.04529167,117140.0,117130.0,0.36883608]
[1755887227865,0.60887264,117140.0,117130.0,0.36883608]
[1755887228108,1.04529167,117140.0,117130.0,0.36883608]
[1755887228517,0.60887264,117140.0,117130.0,0.36883608]
[1755887228743,1.04529167,117140.0,117130.0,0.36883608]
[1755887229653,1.06274069,117140.0,117130.0,0.36883608]
[1755887229892,1.05550038,117140.0,117130.0,0.36883608]
[1755887230740,1.05550038,117140.0,117130.0,0.17278812]
[1755887230950,1.08997529,117140.0,117130.0,0.36883608]
[1755887231366,1.08997529,117140.0,117130.0,0.17278812]
[1755887231514,1.08997529,117140.0,117130.0,0.36883608]
[1755887233109,1.11564129,117140.0,117130.0,0.36883608]
[1755887233310,1.13857161,117140.0,117130.0,0.36883608]
[1755887233575,1.31530799,117140.0,117130.0,0.17278812]
[1755887233769,1.346999,117140.0,117080.0,0.003]
[1755887234105,0.44433377,117110.0,117090.0,0.19604796]
[1755887234292,0.49970022,117110.0,117100.0,0.19604796]
[1755887234505,0.70345708,117110.0,117100.0,0.19604796]
[1755887234723,0.70657708,117110.0,117100.0,0.19604796]
[1755887234951,0.75525192,117110.0,117100.0,0.19604796]
[1755887235173,1.19167095,117110.0,117100.0,0.19604796]
[1755887236272,1.14305455,117110.0,117100.0,0.19604796]
[1755887236483,1.13506881,117110.0,117100.0,0.19604796]
[1755887236700,1.14304925,117110.0,117100.0,0.19604796]
[1755887237196,1.14504925,117110.0,117100.0,0.19804796]
[1755887237431,1.14804925,117110.0,117100.0,0.19804796]
[1755887238287,1.16549827,117110.0,117100.0,0.19804796]
[1755887242178,1.13988571,117110.0,117100.0,0.19804796]
[1755887242389,1.13985951,117110.0,117100.0,0.19804796]
[1755887243420,1.13673951,117110.0,117100.0,0.19804796]
[1755887244069,1.13985951,117110.0,117100.0,0.19804796]
[1755887244267,0.70344048,117110.0,117100.0,0.19804796]
[1755887244487,1.17824639,117110.0,117100.0,0.19804796]
[1755887245167,1.13985951,117110.0,117100.0,0.19804796]
[1755887245382,0.70344048,117110.0,117100.0,0.19804796]
[1755887245594,1.13187907,117110.0,117100.0,0.19804796]
[1755887245817,1.15321812,117110.0,117100.0,0.002]
[1755887246245,1.13984965,117110.0,117100.0,0.19804796]
[1755887246470,1.13984943,117110.0,117100.0,0.002]
[1755887246891,0.97712943,117110.0,117100.0,0.002]
[1755887247140,1.13680943,117110.0,117100.0,0.20019796]
[1755887247776,1.13680943,117110.0,117100.0,0.20319796]
[1755887248411,1.11119687,117110.0,117100.0,0.20019796]
[1755887249272,0.67477784,117110.0,117100.0,0.20019796]
[1755887249469,1.11119687,117110.0,117100.0,0.20019796]
[1755887249701,0.94948687,117110.0,117100.0,0.20319796]
[1755887250071,0.67274784,117110.0,117100.0,0.20319796]
[1755887250274,1.10916687,117110.0,117100.0,0.20319796]
[1755887250483,1.09171785,117110.0,117100.0,0.20319796]
[1755887251119,1.10767558,117110.0,117100.0,0.20319796]
[1755887251530,0.67125655,117110.0,117100.0,0.20319796]
[1755887251729,1.10767558,117110.0,117100.0,0.20319796]
[1755887251943,1.09172354,117110.0,117100.0,0.20319796]
[1755887252164,1.07336217,117110.0,117100.0,0.20319796]
[1755887252419,1.08333523,117110.0,117100.0,0.20319796]
[1755887253276,1.10171783,117110.0,117100.0,0.20319796]
[1755887253924,1.14200776,117110.0,117100.0,0.20319796]
[1755887254496,0.65149051,117110.0,117100.0,0.20319796]
[1755887254696,1.0978826,117110.0,117100.0,0.20019796]
[1755887254903,1.13223312,117110.0,117100.0,0.20019796]
[1755887255105,1.13223312,117110.0,117100.0,0.00415]
[1755887255371,1.13223312,117110.0,117100.0,0.20019796]
[1755887255588,1.09402319,117110.0,117100.0,0.20019796]
[1755887256407,1.09402319,117110.0,117100.0,0.00415]
[1755887256620,1.09402319,117110.0,117100.0,0.20019796]
[1755887257029,0.6476311,117110.0,117100.0,0.20328796]
[1755887257241,1.09402319,117110.0,117100.0,0.20328796]
[1755887257878,1.09402319,117110.0,117100.0,0.20019796]
[1755887258081,1.09402319,117110.0,117100.0,0.19804796]
[1755887258491,1.09402319,117110.0,117100.0,0.20009796]
[1755887258706,1.09402319,117110.0,117100.0,0.20318796]
[1755887259083,1.09402319,117110.0,117100.0,0.20009796]
[1755887259906,1.09207319,117110.0,117100.0,0.20318796]
[1755887260663,1.06650209,117110.0,117100.0,0.20318796]
[1755887261474,1.06858209,117110.0,117100.0,0.20318796]
[1755887262391,1.07458751,117110.0,117100.0,0.20318796]
[1755887263193,1.09753923,117110.0,117100.0,0.20318796]
[1755887263790,1.09753923,117110.0,117100.0,0.20009796]
[1755887264014,1.0976017,117110.0,117100.0,0.20009796]
[1755887264221,1.0976017,117110.0,117100.0,0.20318796]
[1755887264417,1.13553272,117110.0,117100.0,0.20318796]
[1755887264939,1.13549272,117110.0,117100.0,0.20318796]
[1755887266146,1.13549272,117110.0,117100.0,0.20009796]
[1755887266341,1.13549272,117110.0,117100.0,0.20318796]
[1755887266871,1.1098736,117110.0,117100.0,0.20318796]
[1755887267262,1.1098736,117110.0,117100.0,0.20009796]
[1755887267263,0.95023368,117110.0,117100.0,0.20009796]
[1755887267540,1.10987368,117110.0,117100.0,0.20318796]
[1755887267926,0.66348159,117110.0,117100.0,0.20318796]
[1755887268134,1.10987368,117110.0,117100.0,0.20318796]
[1755887269029,1.55919577,117110.0,117100.0,0.002]
[1755887269236,1.16092449,117110.0,117100.0,0.002]
[1755887269405,1.16092449,117110.0,117100.0,0.19804796]
[1755887269990,0.9676827,117110.0,117100.0,0.20009796]
[1755887270185,1.1272827,117110.0,117100.0,0.20009796]
[1755887270649,1.1272827,117110.0,117100.0,0.20318796]
[1755887270650,1.10775368,117110.0,117100.0,0.20318796]
[1755887270946,1.06982456,117110.0,117100.0,0.20318796]
[1755887271898,0.91022456,117110.0,117100.0,0.20318796]
[1755887272100,1.06982456,117110.0,117100.0,0.20318796]
[1755887272861,1.04420544,117110.0,117100.0,0.20318796]
[1755887273080,1.02016438,117110.0,117100.0,0.21648266]
[1755887273291,1.02125523,117110.0,117100.0,0.20318796]
[1755887273703,1.02333529,117110.0,117100.0,0.19804796]
[1755887273901,1.04921703,117110.0,117100.0,0.19804796]
[1755887274116,1.51305814,117110.0,117100.0,0.19804796]
[1755887274579,1.06666605,117110.0,117100.0,0.19804796]
[1755887275253,1.06666605,117110.0,117100.0,0.002]
[1755887275549,1.06666605,117110.0,117100.0,0.19804796]
[1755887276116,1.06373605,117110.0,117100.0,0.19804796]
[1755887276328,1.0533484,117110.0,117100.0,0.19804796]
[1755887276509,1.0533484,117110.0,117100.0,0.20009796]
[1755887276711,1.03589938,117110.0,117100.0,0.20009796]
[1755887278221,1.01294766,117110.0,117100.0,0.20009796]
[1755887278412,1.01294766,117110.0,117100.0,0.19804796]
[1755887278620,1.01587766,117110.0,117100.0,0.19804796]
[1755887278873,1.07779328,117110.0,117100.0,0.19804796]
[1755887279103,1.35309739,117110.0,117100.0,0.19804796]
[1755887279531,0.91709432,117110.0,117100.0,0.19804796]
[1755887280275,0.8551787,117110.0,117100.0,0.19804796]
[1755887280490,0.83479968,117110.0,117100.0,0.20003796]
[1755887280697,0.83479968,117110.0,117100.0,0.20312796]
[1755887280698,0.39671661,117110.0,117100.0,0.20312796]
[1755887280905,0.83271968,117110.0,117100.0,0.20312796]
[1755887281015,1.17271968,117110.0,117100.0,0.20312796]
[1755887281423,1.1667091,117110.0,117100.0,0.20312796]
[1755887281630,1.17272343,117110.0,117100.0,0.20312796]
[1755887281888,1.01312343,117110.0,117100.0,0.20312796]
[1755887282096,1.17272343,117110.0,117100.0,0.20312796]
[1755887282441,1.17467343,117110.0,117100.0,0.20312796]